fUSD/lending_fUSD_20240514
["ID","MTS","AMOUNT","RATE_DAILY","PERIOD"]
[327024645,1715723462328,-796.39,0.00012999,2]
[327024646,1715723462341,-500.0,0.00012999,2]
[327024647,1715723462531,-796.39,0.00012999,2]
[327024648,1715723462553,-500.0,0.00012999,2]
[327024649,1715723462565,-660.81,0.00012999,2]
[327024650,1715723462575,-796.39,0.00012999,2]
[327024651,1715723462586,-499.39142397,0.00012999,2]
[327024652,1715723462596,-660.81,0.00012999,2]
[327024653,1715723462605,-152.014448,0.00012999,2]
[327024654,1715723462615,-660.81,0.00012999,2]
[327024655,1715723462625,-796.39,0.00012999,2]
[327024656,1715723462634,-660.81,0.00012999,2]
[327024657,1715723462644,-796.39,0.00012999,2]
[327024658,1715723462653,-660.81,0.00012999,2]
[327024659,1715723462663,-796.39,0.00012999,2]
[327024660,1715723462672,-660.81,0.00012999,2]
[327024661,1715723462681,-796.39,0.00012999,2]
[327024662,1715723462690,-660.81,0.00012999,2]
[327024663,1715723462699,-796.39,0.00012999,2]
[327024664,1715723462708,-660.81,0.00012999,2]
[327024665,1715723462717,-796.60173433,0.00012999,2]
[327024666,1715723462728,-660.81,0.00012999,2]
[327024667,1715723462737,-660.81,0.00012999,2]
[327024668,1715723462747,-660.81,0.00012999,2]
[327024669,1715723462757,-660.81,0.00012999,2]
[327024670,1715723462767,-660.81,0.00012999,2]
[327024671,1715723462776,-660.81,0.00012999,2]
[327024672,1715723462786,-660.81,0.00012999,2]
[327024673,1715723462795,-660.81,0.00012999,2]
[327024674,1715723462804,-660.81,0.00012999,2]
[327024675,1715723462814,-660.81,0.00012999,2]
[327024676,1715723462823,-660.81,0.00012999,2]
[327024677,1715723462832,-660.81,0.00012999,2]
[327024678,1715723462841,-660.81,0.00012999,2]
[327024679,1715723462850,-660.81,0.00012999,2]
[327024680,1715723462859,-660.81,0.00012999,2]
[327024681,1715723462869,-660.99,0.00012999,2]
[327024682,1715723462878,-151.0,0.00012999,2]
[327024683,1715723462888,-151.0,0.00012999,2]
[327024684,1715723462897,-500.0,0.00012999,2]
[327024685,1715723462907,-151.0,0.00012999,2]
[327024686,1715723462916,-500.0,0.00012999,2]
[327024687,1715723462925,-275.305961,0.00012999,2]
[327024688,1715723462934,-500.0,0.00012999,2]
[327024689,1715723462944,-500.0,0.00012999,2]
[327024690,1715723462954,-493.5,0.00012999,2]
[327024691,1715723462964,-1757.37,0.00012999,2]
[327024692,1715723462973,-500.0,0.00012999,2]
[327024693,1715723462983,-1757.37,0.00012999,2]
[327024694,1715723462992,-1757.37,0.00012999,2]
[327024695,1715723463001,-500.0,0.00012999,2]
[327024696,1715723463010,-1757.37,0.00012999,2]
[327024697,1715723463019,-1757.37,0.00012999,2]
[327024698,1715723463030,-500.0,0.00012999,2]
[327024699,1715723463039,-1757.37,0.00012999,2]
[327024700,1715723463049,-1757.37,0.00012999,2]
[327024701,1715723463058,-500.0,0.00012999,2]
[327024702,1715723463067,-1757.37,0.00012999,2]
[327024703,1715723463077,-500.0,0.00012999,2]
[327024704,1715723463086,-500.0,0.00012999,2]
[327024705,1715723463095,-151.0,0.00012999,2]
[327024706,1715723463104,-500.0,0.00012999,2]
[327024707,1715723463113,-1757.37,0.00012999,2]
[327024708,1715723463123,-500.0,0.00012999,2]
[327024709,1715723463132,-151.0,0.00012999,2]
[327024710,1715723463141,-500.0,0.00012999,2]
[327024711,1715723463150,-219.823373,0.00012999,2]
[327024712,1715723463160,-1757.37,0.00012999,2]
[327024713,1715723463169,-500.0,0.00012999,2]
[327024714,1715723463178,-500.0,0.00012999,2]
[327024715,1715723463187,-1757.37,0.00012999,2]
[327024716,1715723463196,-219.823373,0.00012999,2]
[327024717,1715723463207,-500.0,0.00012999,2]
[327024718,1715723463221,-1757.37,0.00012999,2]
[327024719,1715723463230,-500.0,0.00012999,2]
[327024720,1715723463239,-219.823373,0.00012999,2]
[327024721,1715723463250,-500.0,0.00012999,2]
[327024722,1715723463259,-1757.48686125,0.00012999,2]
[327024723,1715723463268,-500.0,0.00012999,2]
[327024724,1715723463278,-219.823373,0.00012999,2]
[327024725,1715723463288,-500.0,0.00012999,2]
[327024726,1715723463325,-486.27711405,0.00012999,2]
[327024727,1715723463335,-500.0,0.00012999,2]
[327024728,1715723463344,-219.823373,0.00012999,2]
[327024729,1715723463353,-500.0,0.00012999,2]
[327024730,1715723463363,-219.823373,0.00012999,2]
[327024731,1715723463372,-500.0,0.00012999,2]
[327024732,1715723463382,-219.823373,0.00012999,2]
[327024733,1715723463391,-500.0,0.00012999,2]
[327024734,1715723463401,-500.0,0.00012999,2]
[327024735,1715723463409,-500.0,0.00012999,2]
[327024736,1715723463419,-183.1,0.00012999,2]
[327024737,1715723463429,-500.0,0.00012999,2]
[327024738,1715723463439,-294.007723,0.00012999,2]
[327024739,1715723463448,-277.66260597,0.00012999,2]
[327024740,1715723463459,-151.0,0.00012999,2]
[327024741,1715723463468,-294.007723,0.00012999,2]
[327024742,1715723463477,-219.823373,0.00012999,2]
[327024743,1715723463487,-631.41,0.00012999,2]
[327024744,1715723463497,-294.007723,0.00012999,2]
[327024745,1715723463506,-151.0,0.00012999,2]
[327024746,1715723463515,-219.823373,0.00012999,2]
[327024747,1715723463525,-631.41,0.00012999,2]
[327024748,1715723463534,-219.823373,0.00012999,2]
[327024749,1715723463543,-631.41,0.00012999,2]
[327024750,1715723463552,-219.823373,0.00012999,2]
[327024751,1715723463562,-294.007723,0.00012999,2]
[327024752,1715723463572,-631.41,0.00012999,2]
[327024753,1715723463581,-219.823373,0.00012999,2]
[327024754,1715723463591,-631.41,0.00012999,2]
[327024755,1715723463600,-294.007723,0.00012999,2]
[327024756,1715723463609,-219.823373,0.00012999,2]
[327024757,1715723463618,-631.41,0.00012999,2]
[327024758,1715723463627,-294.007723,0.00012999,2]
[327024759,1715723463636,-219.823373,0.00012999,2]
[327024760,1715723463646,-631.41,0.00012999,2]
[327024761,1715723463655,-294.007723,0.00012999,2]
[327024762,1715723463664,-631.41,0.00012999,2]
[327024763,1715723463673,-631.41,0.00012999,2]
[327024764,1715723463682,-501.71,0.00012999,2]
[327024765,1715723463692,-631.41,0.00012999,2]
[327024766,1715723463701,-501.71,0.00012999,2]
[327024767,1715723463711,-500.0,0.00012999,2]
[327024768,1715723463720,-631.41,0.00012999,2]
[327024769,1715723463730,-501.71,0.00012999,2]
[327024770,1715723463741,-500.0,0.00012999,2]
[327024771,1715723463751,-631.41,0.00012999,2]
[327024772,1715723463762,-501.71,0.00012999,2]
[327024773,1715723463772,-500.0,0.00012999,2]
[327024774,1715723463782,-294.007723,0.00012999,2]
[327024775,1715723463791,-631.41,0.00012999,2]
[327024776,1715723463800,-501.71,0.00012999,2]
[327024777,1715723463809,-500.0,0.00012999,2]
[327024778,1715723463818,-294.007723,0.00012999,2]
[327024779,1715723463827,-631.41,0.00012999,2]
[327024780,1715723463837,-501.71,0.00012999,2]
[327024781,1715723463846,-500.0,0.00012999,2]
[327024782,1715723463856,-501.71,0.00012999,2]
[327024783,1715723463866,-631.41,0.00012999,2]
[327024784,1715723463875,-294.007723,0.00012999,2]
[327024785,1715723463887,-500.0,0.00012999,2]
[327024786,1715723463897,-151.0,0.00012999,2]
[327024787,1715723463907,-501.71,0.00012999,2]
[327024788,1715723463917,-631.41,0.00012999,2]
[327024789,1715723463928,-500.0,0.00012999,2]
[327024790,1715723463937,-294.007723,0.00012999,2]
[327024791,1715723463946,-631.41,0.00012999,2]
[327024792,1715723463955,-151.0,0.00012999,2]
[327024793,1715723463964,-501.71,0.00012999,2]
[327024794,1715723463973,-500.0,0.00012999,2]
[327024795,1715723463983,-631.41,0.00012999,2]
[327024796,1715723463992,-501.71,0.00012999,2]
[327024797,1715723464001,-151.0,0.00012999,2]
[327024798,1715723464010,-294.007723,0.00012999,2]
[327024799,1715723464020,-500.0,0.00012999,2]
[327024800,1715723464030,-501.71,0.00012999,2]
[327024801,1715723464039,-151.0,0.00012999,2]
[327024802,1715723464047,-294.007723,0.00012999,2]
[327024803,1715723464056,-500.0,0.00012999,2]
[327024804,1715723464065,-631.41,0.00012999,2]
[327024805,1715723464075,-501.71,0.00012999,2]
[327024806,1715723464084,-294.007723,0.00012999,2]
[327024807,1715723464093,-230.957618,0.00012999,2]
[327024808,1715723464102,-500.0,0.00012999,2]
[327024809,1715723464111,-631.41,0.00012999,2]
[327024810,1715723464120,-501.87800345,0.00012999,2]
[327024811,1715723464130,-500.0,0.00012999,2]
[327024812,1715723464140,-631.41,0.00012999,2]
[327024813,1715723464150,-500.0,0.00012999,2]
[327024814,1715723464159,-631.41,0.00012999,2]
[327024815,1715723464169,-500.0,0.00012999,2]
[327024816,1715723464179,-631.41,0.00012999,2]
[327024817,1715723464188,-500.0,0.00012999,2]
[327024818,1715723464198,-631.45173179,0.00012999,2]
[327024819,1715723464209,-500.0,0.00012999,2]
[327024820,1715723464221,-170.41767467,0.00012999,2]
[327024821,1715723464232,-151.0,0.00012999,2]
[327024822,1715723464242,-1916.32,0.00012999,2]
[327024823,1715723464254,-151.0,0.00012999,2]
[327024824,1715723464263,-1916.32,0.00012999,2]
[327024825,1715723464275,-151.0,0.00012999,2]
[327024826,1715723464286,-1916.32,0.00012999,2]
[327024827,1715723464295,-1916.32,0.00012999,2]
[327024828,1715723464304,-151.0,0.00012999,2]
[327024829,1715723464313,-151.0,0.00012999,2]
[327024830,1715723464322,-1916.32,0.00012999,2]
[327024831,1715723464331,-151.0,0.00012999,2]
[327024832,1715723464339,-151.0,0.00012999,2]
[327024833,1715723464348,-1916.32,0.00012999,2]
[327024834,1715723464358,-151.0,0.00012999,2]
[327024835,1715723464367,-151.0,0.00012999,2]
[327024836,1715723464377,-1916.32,0.00012999,2]
[327024837,1715723464386,-151.0,0.00012999,2]
[327024838,1715723464395,-1916.32,0.00012999,2]
[327024839,1715723464406,-151.0,0.00012999,2]
[327024840,1715723464417,-1916.32,0.00012999,2]
[327024841,1715723464426,-151.0,0.00012999,2]
[327024842,1715723464436,-1916.32,0.00012999,2]
[327024843,1715723464446,-1916.32,0.00012999,2]
[327024844,1715723464455,-299.075927,0.00012999,2]
[327024845,1715723464464,-1916.32,0.00012999,2]
[327024846,1715723464474,-1916.41962038,0.00012999,2]
[327024847,1715723464483,-500.0,0.00012999,2]
[327024848,1715723464492,-500.0,0.00012999,2]
[327024849,1715723464501,-500.0,0.00012999,2]
[327024850,1715723464511,-500.0,0.00012999,2]
[327024851,1715723464520,-151.0,0.00012999,2]
[327024852,1715723464530,-500.0,0.00012999,2]
[327024853,1715723464540,-152.007931,0.00012999,2]
[327024854,1715723464549,-500.0,0.00012999,2]
[327024855,1715723464559,-500.0,0.00012999,2]
[327024856,1715723464569,-500.0,0.00012999,2]
[327024857,1715723464579,-500.0,0.00012999,2]
[327024858,1715723464591,-500.0,0.00012999,2]
[327024859,1715723464603,-500.0,0.00012999,2]
[327024860,1715723464614,-614.17337246,0.00012999,2]
[327024861,1715723464625,-500.0,0.00012999,2]
[327024862,1715723464633,-500.0,0.00012999,2]
[327024863,1715723464642,-500.0,0.00012999,2]
[327024864,1715723464651,-500.0,0.00012999,2]
[327024865,1715723464660,-445.21,0.00012999,2]
[327024866,1715723464670,-967.95,0.00012999,2]
[327024867,1715723464679,-967.95,0.00012999,2]
[327024868,1715723464688,-967.95,0.00012999,2]
[327024869,1715723464697,-967.95,0.00012999,2]
[327024870,1715723464707,-967.95,0.00012999,2]
[327024871,1715723464716,-967.95,0.00012999,2]
[327024872,1715723464725,-967.95,0.00012999,2]
[327024873,1715723464734,-968.14130694,0.00012999,2]
[327024874,1715723464743,-1051.41,0.00012999,2]
[327024875,1715723464752,-1051.41,0.00012999,2]
[327024876,1715723464762,-1051.41,0.00012999,2]
[327024877,1715723464771,-1051.41,0.00012999,2]
[327024878,1715723464780,-1051.41,0.00012999,2]
[327024879,1715723464789,-1051.41,0.00012999,2]
[327024880,1715723464798,-1051.41,0.00012999,2]
[327024881,1715723464807,-905.49,0.00012999,2]
[327024882,1715723464817,-1051.43502354,0.00012999,2]
[327024883,1715723464826,-905.49,0.00012999,2]
[327024884,1715723464835,-905.49,0.00012999,2]
[327024885,1715723464845,-905.49,0.00012999,2]
[327024886,1715723464854,-905.49,0.00012999,2]
[327024887,1715723464864,-905.49,0.00012999,2]
[327024888,1715723464873,-242.773716,0.00012999,2]
[327024889,1715723464883,-905.49,0.00012999,2]
[327024890,1715723464893,-905.49,0.00012999,2]
[327024891,1715723464902,-242.773716,0.00012999,2]
[327024892,1715723464912,-905.49,0.00012999,2]
[327024893,1715723464922,-242.773716,0.00012999,2]
[327024894,1715723464932,-905.49,0.00012999,2]
[327024895,1715723464942,-500.0,0.00012999,2]
[327024896,1715723464951,-905.49,0.00012999,2]
[327024897,1715723464961,-242.773716,0.00012999,2]
[327024898,1715723464970,-500.0,0.00012999,2]
[327024899,1715723464980,-905.49,0.00012999,2]
[327024900,1715723464990,-242.773716,0.00012999,2]
[327024901,1715723464999,-500.0,0.00012999,2]
[327024902,1715723465009,-500.0,0.00012999,2]
[327024903,1715723465019,-242.773716,0.00012999,2]
[327024904,1715723465029,-500.0,0.00012999,2]
[327024905,1715723465040,-500.0,0.00012999,2]
[327024906,1715723465050,-242.773716,0.00012999,2]
[327024907,1715723465060,-500.0,0.00012999,2]
[327024908,1715723465069,-500.0,0.00012999,2]
[327024909,1715723465087,-905.60985904,0.00012999,2]
[327024910,1715723465097,-514.55739072,0.00012999,2]
[327024911,1715723465107,-242.773716,0.00012999,2]
[327024912,1715723465117,-242.773716,0.00012999,2]
[327024913,1715723465126,-242.773716,0.00012999,2]
[327024914,1715723465136,-1219.53,0.00012999,2]
[327024915,1715723465146,-242.773716,0.00012999,2]
[327024916,1715723465155,-652.01,0.00012999,2]
[327024917,1715723465165,-242.773716,0.00012999,2]
[327024918,1715723465175,-1219.53,0.00012999,2]
[327024919,1715723465185,-652.01,0.00012999,2]
[327024920,1715723465195,-1219.53,0.00012999,2]
[327024921,1715723465205,-242.773716,0.00012999,2]
[327024922,1715723465220,-500.0,0.00012999,2]
[327024923,1715723465230,-1219.53,0.00012999,2]
[327024924,1715723465240,-652.01,0.00012999,2]
[327024925,1715723465252,-242.773716,0.00012999,2]
[327024926,1715723465261,-534.58411432,0.00012999,2]
[327024927,1715723465271,-1219.53,0.00012999,2]
[327024928,1715723465280,-652.01,0.00012999,2]
[327024929,1715723465292,-1219.53,0.00012999,2]
[327024930,1715723465302,-652.07969099,0.00012999,2]
[327024931,1715723465311,-1219.53,0.00012999,2]
[327024932,1715723465320,-1219.72730999,0.00012999,2]
[327024933,1715723465330,-1844.6,0.00012999,2]
[327024934,1715723465339,-1844.6,0.00012999,2]
[327024935,1715723465349,-1844.6,0.00012999,2]
[327024936,1715723465358,-1844.6,0.00012999,2]
[327024937,1715723465368,-1844.6,0.00012999,2]
[327024938,1715723465378,-1844.6,0.00012999,2]
[327024939,1715723465388,-1844.6,0.00012999,2]
[327024940,1715723465397,-500.0,0.00012999,2]
[327024941,1715723465407,-1844.6,0.00012999,2]
[327024942,1715723465417,-500.0,0.00012999,2]
[327024943,1715723465426,-1844.6,0.00012999,2]
[327024944,1715723465436,-500.0,0.00012999,2]
[327024945,1715723465446,-1844.6,0.00012999,2]
[327024946,1715723465455,-500.0,0.00012999,2]
[327024947,1715723465466,-1844.6,0.00012999,2]
[327024948,1715723465475,-500.0,0.00012999,2]
[327024949,1715723465484,-1844.6,0.00012999,2]
[327024950,1715723465493,-500.0,0.00012999,2]
[327024951,1715723465503,-1844.80341974,0.00012999,2]
[327024952,1715723465512,-500.0,0.00012999,2]
[327024953,1715723465521,-500.0,0.00012999,2]
[327024954,1715723465531,-500.0,0.00012999,2]
[327024955,1715723465540,-500.0,0.00012999,2]
[327024956,1715723465550,-500.0,0.00012999,2]
[327024957,1715723465559,-500.0,0.00012999,2]
[327024958,1715723465568,-500.0,0.00012999,2]
[327024959,1715723465578,-500.0,0.00012999,2]
[327024960,1715723465587,-500.0,0.00012999,2]
[327024961,1715723465596,-500.0,0.00012999,2]
[327024962,1715723465606,-500.0,0.00012999,2]
[327024963,1715723465616,-500.0,0.00012999,2]
[327024964,1715723465625,-500.0,0.00012999,2]
[327024965,1715723465635,-500.0,0.00012999,2]
[327024966,1715723465644,-269.46632254,0.00012999,2]
[327024967,1715723465654,-500.0,0.00012999,2]
[327024968,1715723465663,-500.0,0.00012999,2]
[327024969,1715723465672,-500.0,0.00012999,2]
[327024970,1715723465682,-582.26,0.00012999,2]
[327024971,1715723465691,-500.0,0.00012999,2]
[327024972,1715723465700,-500.0,0.00012999,2]
[327024973,1715723465710,-582.26,0.00012999,2]
[327024974,1715723465719,-967.77,0.00012999,2]
[327024975,1715723465728,-500.0,0.00012999,2]
[327024976,1715723465738,-582.26,0.00012999,2]
[327024977,1715723465748,-967.77,0.00012999,2]
[327024978,1715723465757,-500.0,0.00012999,2]
[327024979,1715723465766,-582.26,0.00012999,2]
[327024980,1715723465776,-967.77,0.00012999,2]
[327024981,1715723465785,-1093.5,0.00012999,2]
[327024982,1715723465795,-500.0,0.00012999,2]
[327024983,1715723465805,-582.26,0.00012999,2]
[327024984,1715723465815,-1093.5,0.00012999,2]
[327024985,1715723465974,-967.77,0.00012999,2]
[327024986,1715723465984,-1778.67,0.00012999,2]
[327024987,1715723465994,-1093.5,0.00012999,2]
[327024988,1715723466004,-582.26,0.00012999,2]
[327024989,1715723466014,-500.0,0.00012999,2]
[327024990,1715723466025,-967.86734622,0.00012999,2]
[327024991,1715723466034,-582.26,0.00012999,2]
[327024992,1715723466044,-500.0,0.00012999,2]
[327024993,1715723466053,-1778.67,0.00012999,2]
[327024994,1715723466063,-582.26,0.00012999,2]
[327024995,1715723466072,-1093.5,0.00012999,2]
[327024996,1715723466082,-500.0,0.00012999,2]
[327024997,1715723466092,-1778.67,0.00012999,2]
[327024998,1715723466102,-1093.5,0.00012999,2]
[327024999,1715723466111,-582.26,0.00012999,2]
[327025000,1715723466121,-500.0,0.00012999,2]
[327025001,1715723466131,-1778.67,0.00012999,2]
[327025002,1715723466140,-1093.5,0.00012999,2]
[327025003,1715723466150,-582.26,0.00012999,2]
[327025004,1715723466159,-500.0,0.00012999,2]
[327025005,1715723466168,-1093.5,0.00012999,2]
[327025006,1715723466178,-1778.67,0.00012999,2]
[327025007,1715723466188,-582.26,0.00012999,2]
[327025008,1715723466197,-544.59906116,0.00012999,2]
[327025009,1715723466210,-1778.67,0.00012999,2]
[327025010,1715723466221,-1093.59885678,0.00012999,2]
[327025011,1715723466230,-1778.67,0.00012999,2]
[327025012,1715723466240,-582.26,0.00012999,2]
[327025013,1715723466250,-1778.67,0.00012999,2]
[327025014,1715723466259,-582.26,0.00012999,2]
[327025015,1715723466270,-1778.67,0.00012999,2]
[327025016,1715723466279,-582.26,0.00012999,2]
[327025017,1715723466293,-41116.92406353,0.00013,2]
[327025018,1715723466303,-2098517.86554445,0.00013,2]
[327025019,1715723466313,-2334470.38442311,0.00013,2]
[327025020,1715723466323,-135397.51509813,0.00013,2]
[327025021,1715723466662,-31924.69166294,0.00013,2]
[327025022,1715723466875,-584.69,0.00012876,2]
[327025023,1715723466885,-584.69,0.00012876,2]
[327025024,1715723466895,-584.69,0.00012876,2]
[327025025,1715723466905,-151.213,0.00012907,2]
[327025026,1715723466915,-582.26,0.00012999,2]
[327025027,1715723466924,-1778.67,0.00012999,2]
[327025028,1715723466934,-1778.67,0.00012999,2]
[327025029,1715723466943,-582.26,0.00012999,2]
[327025030,1715723466952,-1778.67,0.00012999,2]
[327025031,1715723466962,-582.26,0.00012999,2]
[327025032,1715723466972,-1778.67,0.00012999,2]
[327025033,1715723466981,-582.26,0.00012999,2]
[327025034,1715723466991,-1778.67,0.00012999,2]
[327025035,1715723466999,-582.26,0.00012999,2]
[327025036,1715723467010,-1778.67,0.00012999,2]
[327025037,1715723467019,-582.26,0.00012999,2]
[327025038,1715723467030,-1778.67,0.00012999,2]
[327025039,1715723467040,-582.26,0.00012999,2]
[327025040,1715723467050,-1778.67,0.00012999,2]
[327025041,1715723467060,-582.26,0.00012999,2]
[327025042,1715723467069,-213124.60214669,0.00013,2]
[327025043,1715723467081,-1234.0,0.00013,2]
[327025044,1715723467113,-584.69,0.00012876,2]
[327025045,1715723467123,-166.0,0.00012907,2]
[327025046,1715723467132,-352.52630037,0.00012999,2]
[327025047,1715723467148,-1426.14369963,0.00012999,2]
[327025048,1715723467157,-1683.71630037,0.00013,2]
[327025049,1715723467169,-307.05168216,0.00013,2]
[327025050,1715723467204,-584.69,0.00012876,2]
[327025051,1715723467220,-582.26,0.00012999,2]
[327025052,1715723467231,-8058.02135061,0.00013,2]
[327025053,1715723467426,-188.04734425,0.00012875,2]
[327025054,1715723467435,-63.40265459,0.00012875,2]
[327025055,1715723467466,-99.10053856,0.00012875,2]
[327025056,1715723467475,-584.69,0.00012876,2]
[327025057,1715723467485,-584.69,0.00012995,2]
[327025058,1715723467495,-231.51946144,0.00012995,2]
[327025059,1715723467507,-353.17053856,0.00012995,2]
[327025060,1715723467518,-584.69,0.00012995,2]
[327025061,1715723467528,-584.69,0.00012995,2]
[327025062,1715723467537,-13.36480539,0.00012995,2]
[327025092,1715724632251,-203.3044281,0.00010087,2]
[327025093,1715724632260,-2184.98248906,0.00010185,2]
[327025094,1715724632270,-4594.27005244,0.00010186,2]
[327025095,1715724632280,-150.0,0.00010187,2]
[327025096,1715724632289,-538.3518557,0.00010194,2]
[327025097,1715724632299,-487.64,0.00010411,2]
[327025098,1715724632309,-382.75,0.00010411,2]
[327025099,1715724632318,-2354.2525,0.00010759,2]
[327025100,1715724632327,-247.55,0.0001079,2]
[327025101,1715724632337,-380.08,0.00010799,2]
[327025102,1715724632347,-250.0,0.0001081,2]
[327025103,1715724632356,-203.3044281,0.00010825,2]
[327025104,1715724632365,-188.6,0.00010833,2]
[327025105,1715724632375,-452.97,0.000109,2]
[327025106,1715724632384,-3059.09382581,0.00010925,2]
[327025107,1715724632399,-338.93617419,0.00010925,2]
[327025108,1715724632409,-150.99,0.00010925,2]
[327025109,1715724632418,-802.13729487,0.00010958,2]
[327025110,1715724632428,-649.31,0.00010959,2]
[327025111,1715724632438,-245.95,0.00010959,2]
[327025112,1715724632457,-204.96,0.00010959,2]
[327025113,1715724632474,-170.8,0.00010959,2]
[327025114,1715724632488,-854.04,0.00010959,2]
[327025115,1715724632502,-200.0,0.00011,2]
[327025116,1715724632516,-499.99,0.00011,2]
[327025117,1715724632531,-619.92,0.00011264,2]
[327025118,1715724632546,-177.5,0.00011377,2]
[327025119,1715724632562,-165.18,0.00011397,2]
[327025120,1715724632579,-177.5,0.00011408,2]
[327025121,1715724632593,-177.5,0.00011439,2]
[327025122,1715724632608,-183.98,0.00011453,2]
[327025123,1715724632622,-177.5,0.0001147,2]
[327025124,1715724632637,-177.5,0.00011502,2]
[327025125,1715724632653,-1835.2682,0.00011516,2]
[327025126,1715724632665,-2160.68,0.00011516,2]
[327025127,1715724632678,-177.5,0.00011533,2]
[327025128,1715724632692,-177.5,0.00011564,2]
[327025129,1715724632706,-177.5,0.00011595,2]
[327025130,1715724632720,-177.5,0.00011626,2]
[327025131,1715724632735,-177.5,0.00011658,2]
[327025132,1715724632749,-177.5,0.00011689,2]
[327025133,1715724632760,-177.5,0.0001172,2]
[327025134,1715724632771,-177.5,0.00011751,2]
[327025135,1715724632784,-177.5,0.00011782,2]
[327025136,1715724632798,-177.5,0.00011814,2]
[327025137,1715724632811,-177.5,0.00011845,2]
[327025138,1715724632823,-177.5,0.00011876,2]
[327025139,1715724632836,-177.5,0.00011907,2]
[327025140,1715724632850,-177.5,0.00011938,2]
[327025141,1715724632861,-177.5,0.0001197,2]
[327025142,1715724632871,-18985.5966994,0.00012,2]
[327025143,1715724632889,-635.48658425,0.00012,2]
[327025144,1715724632904,-380.08,0.00012149,2]
[327025145,1715724632917,-2356.03750157,0.00012276,2]
[327025146,1715724632929,-10000.0,0.00012278,2]
[327025147,1715724632942,-758.01478197,0.00012347,2]
[327025148,1715724632955,-9278.38449006,0.000124,2]
[327025149,1715724632966,-267.36184,0.00012452,2]
[327025150,1715724632979,-267.361836,0.00012452,2]
[327025151,1715724632991,-169.52,0.00012639,2]
[327025152,1715724633004,-619.92,0.00012672,2]
[327025153,1715724633016,-819.1064,0.00012676,2]
[327025154,1715724633029,-271.9617,0.00012676,2]
[327025155,1715724633041,-528.8047,0.00012676,2]
[327025156,1715724633053,-8074.8189,0.00012676,2]
[327025157,1715724633065,-330.1203,0.00012676,2]
[327025158,1715724633077,-1561.86172371,0.00012688,2]
[327025159,1715724633088,-11633.30107111,0.00012745,2]
[327025160,1715724633104,-4341.68844909,0.00012745,2]
[327025161,1715724633116,-10787.70910078,0.00012776,2]
[327025162,1715724633130,-574.32971375,0.00012776,2]
[327025163,1715724633144,-339.76818,0.00012776,2]
[327025164,1715724633160,-611.71059997,0.00012776,2]
[327025165,1715724633210,-5869.48428717,0.00012776,2]
[327025166,1715724633328,-20923.35611833,0.00012776,2]
[327025167,1715724633340,-43406.01454588,0.00012776,2]
[327025168,1715724638404,-449.46905376,0.00010086,2]
[327025169,1715724638416,-73.59449006,0.00010086,2]
[327025170,1715724638426,-53550.91918924,0.00012776,2]
[327025171,1715724638437,-3043.06626488,0.00012776,2]
[327025172,1715724638447,-305.6611,0.00012776,2]
[327025173,1715724638457,-4411.76921078,0.00012776,2]